bitfinex-derivatives/quotes_BTCF0:USTF0_20250805
["timestamp","ask_amount","ask_price","bid_price","bid_amount"]
[1754391690584,0.2930055,114890.0,114880.0,0.2963001]
[1754391690781,0.8965255,114890.0,114880.0,0.2963001]
[1754391690983,0.2930055,114890.0,114880.0,0.2963001]
[1754391691182,0.69765865,114890.0,114880.0,0.2963001]
[1754391691481,0.2930055,114890.0,114880.0,0.2963001]
[1754391691681,0.69765865,114890.0,114880.0,0.2963001]
[1754391692894,0.69701865,114890.0,114880.0,0.2963001]
[1754391694691,0.65275699,114890.0,114880.0,0.2963001]
[1754391694990,0.65275699,114890.0,114880.0,0.12219]
[1754391698192,0.2923655,114890.0,114880.0,0.12219]
[1754391698490,0.65275699,114890.0,114880.0,0.12219]
[1754391699492,0.65275699,114890.0,114880.0,0.2963001]
[1754391701688,0.2923655,114890.0,114880.0,0.2963001]
[1754391701988,0.65275699,114890.0,114880.0,0.2963001]
[1754391703192,0.2923655,114890.0,114880.0,0.2963001]
[1754391703394,0.65275699,114890.0,114880.0,0.2963001]
[1754391705196,0.65275699,114890.0,114880.0,0.12219]
[1754391705396,0.65275699,114890.0,114880.0,0.1078]
[1754391705597,0.65275699,114890.0,114880.0,0.05117]
[1754391705791,0.65275699,114890.0,114880.0,0.19959]
[1754391705999,0.65275699,114890.0,114880.0,0.004]
[1754391706497,0.65275699,114890.0,114880.0,0.2983201]
[1754391706899,0.65275699,114890.0,114880.0,0.12421]
[1754391707395,0.65275699,114890.0,114880.0,0.004]
[1754391710798,0.2923655,114890.0,114880.0,0.004]
[1754391711001,0.65275699,114890.0,114880.0,0.004]
[1754391716614,0.69788665,114890.0,114880.0,0.004]
[1754391717316,0.69788665,114890.0,114880.0,0.002]
[1754391718215,0.22228,114880.0,114870.0,0.9123235]
[1754391718419,0.69733115,114880.0,114870.0,0.9845435]
[1754391719718,0.69733115,114880.0,114870.0,0.9855435]
[1754391720210,0.24495,114880.0,114870.0,0.9855435]
[1754391720416,0.69733115,114880.0,114870.0,0.9855435]
[1754391720611,0.69733115,114880.0,114870.0,0.9865435]
[1754391720914,0.57963115,114880.0,114870.0,0.9865435]
[1754391721116,0.65860115,114880.0,114870.0,0.9865435]
[1754391721415,0.69733115,114880.0,114870.0,0.9865435]
[1754391722111,0.57963115,114880.0,114870.0,0.9865435]
[1754391722319,0.17411,114880.0,114870.0,1.39206465]
[1754391722920,0.57963115,114880.0,114870.0,1.39206465]
[1754391723318,0.17411,114880.0,114870.0,1.39206465]
[1754391723515,0.17411,114880.0,114870.0,1.65686465]
[1754391724226,0.4239759,114890.0,114880.0,0.2924701]
[1754391725307,0.78431796,114890.0,114880.0,0.2924701]
[1754391736223,0.4239759,114890.0,114880.0,0.2924701]
[1754391736424,0.78431796,114890.0,114880.0,0.2924701]
[1754391743626,0.78431796,114890.0,114880.0,0.2362401]
[1754391743833,0.2563749,114890.0,114880.0,0.65281216]
[1754391744030,0.2933849,114890.0,114880.0,0.65281216]
[1754391744225,0.11929,114890.0,114880.0,0.2924701]
[1754391744533,0.2933849,114890.0,114880.0,0.2924701]
[1754391745730,0.11929,114890.0,114880.0,0.2924701]
[1754391746627,0.11929,114890.0,114880.0,0.69774635]
[1754391746826,0.10507,114890.0,114880.0,0.69774635]
[1754391747233,0.11929,114890.0,114880.0,0.96254635]
[1754391749437,0.11929,114890.0,114880.0,0.5572701]
[1754391749639,0.11929,114890.0,114880.0,0.96254635]
[1754391750439,0.2933846,114890.0,114880.0,0.96254635]
[1754391750629,0.1981746,114890.0,114880.0,0.96254635]
[1754391751343,0.02408,114890.0,114880.0,0.96254635]
[1754391751840,0.1981747,114890.0,114880.0,0.96254635]
[1754391752840,0.61881095,114890.0,114880.0,0.96254635]
[1754391753038,0.63528095,114890.0,114880.0,0.96254635]
[1754391753342,0.65824095,114890.0,114880.0,0.96254635]
[1754391753539,0.65824095,114890.0,114880.0,0.96354635]
[1754391754551,0.65824095,114890.0,114880.0,0.5582701]
[1754391754844,0.65824095,114890.0,114880.0,0.96354635]
[1754391755242,0.65824095,114890.0,114880.0,0.96254635]
[1754391755443,0.65824095,114890.0,114880.0,0.96354635]
[1754391757349,0.55824095,114890.0,114880.0,0.96354635]
[1754391757545,0.55824095,114890.0,114880.0,0.96254635]
[1754391757946,0.1529647,114890.0,114880.0,0.96254635]
[1754391758148,0.55824095,114890.0,114880.0,0.96254635]
[1754391759348,0.56241095,114890.0,114880.0,0.96254635]
[1754391760051,0.56908095,114890.0,114880.0,0.96254635]
[1754391761054,0.56908095,114890.0,114880.0,0.5572701]
[1754391761249,0.56908095,114890.0,114880.0,0.96254635]
[1754391762154,0.56908095,114890.0,114880.0,0.5572701]
[1754391762454,0.56908095,114890.0,114880.0,0.96254635]
[1754391762855,0.1638047,114890.0,114880.0,0.96254635]
[1754391763155,0.56908095,114890.0,114880.0,0.96254635]
[1754391763850,0.06563,114890.0,114880.0,0.96254635]
[1754391764052,0.42174625,114890.0,114880.0,0.96254635]
[1754391764448,0.68288345,114900.0,114890.0,0.2919948]
[1754391764747,0.60241345,114900.0,114890.0,1.29975105]
[1754391764953,0.68945735,114900.0,114890.0,1.56455105]
[1754391765148,0.71908735,114900.0,114890.0,1.56455105]
[1754391766260,0.2494202,114910.0,114900.0,0.2919796]
[1754391766450,0.2058944,114910.0,114900.0,0.2919796]
[1754391766657,0.2396944,114910.0,114900.0,0.2919796]
[1754391766851,0.66247065,114910.0,114900.0,0.2919796]
[1754391768160,0.66347065,114910.0,114900.0,0.2919796]
[1754391768561,0.66347065,114910.0,114900.0,0.30058025]
[1754391769558,0.64597065,114910.0,114900.0,0.02329]
[1754391769862,0.2572096,114900.0,114890.0,0.6438236]
[1754391770062,1.0677621,114900.0,114890.0,1.2062225]
[1754391770762,1.0677621,114900.0,114890.0,0.6003025]
[1754391770963,1.0677621,114900.0,114890.0,1.2063425]
[1754391771459,1.0677621,114900.0,114890.0,0.6003025]
[1754391771665,1.0677621,114900.0,114890.0,1.2063425]
[1754391772063,1.0687621,114900.0,114890.0,1.21505262]
[1754391772756,1.0687621,114900.0,114890.0,0.5567948]
[1754391772956,1.0687621,114900.0,114890.0,0.2648]
[1754391773162,1.0687621,114900.0,114890.0,0.89393]
[1754391773963,1.0687621,114900.0,114890.0,1.1626347]
[1754391774465,0.2602096,114900.0,114890.0,1.1626347]
[1754391774667,0.62051934,114900.0,114890.0,1.1626347]
[1754391776861,0.62051934,114900.0,114890.0,0.8978347]
[1754391777061,0.62051934,114900.0,114890.0,0.90637183]
[1754391780769,0.62051934,114900.0,114890.0,0.73227713]
[1754391780967,0.62051934,114900.0,114890.0,0.07128]
[1754391781270,0.62051934,114900.0,114890.0,0.67676]
[1754391781670,0.62051934,114900.0,114890.0,0.8831247]
[1754391781965,0.62051934,114900.0,114890.0,0.8972947]
[1754391782269,0.56469934,114900.0,114890.0,0.90590138]
[1754391782571,0.60301934,114900.0,114890.0,0.90590138]
[1754391782769,0.60301934,114900.0,114890.0,0.8972947]
[1754391782969,0.62051934,114900.0,114890.0,0.8972947]
[1754391785371,0.62051934,114900.0,114890.0,0.90598657]
[1754391787471,0.62051934,114900.0,114890.0,0.30050657]
[1754391787777,0.62051934,114900.0,114890.0,0.90626657]
[1754391788280,0.62051934,114900.0,114890.0,0.8975747]
[1754391788882,0.62051934,114900.0,114890.0,0.90606402]
[1754391789180,0.62051934,114900.0,114890.0,0.8975747]
[1754391795989,0.60301934,114900.0,114890.0,0.8975747]
[1754391796784,1.05342122,114900.0,114890.0,0.8975747]
[1754391797184,0.64806541,114900.0,114890.0,0.8975747]
[1754391797685,0.2089096,114900.0,114890.0,1.30293051]
[1754391797885,0.61426541,114900.0,114890.0,1.30293051]
[1754391800386,0.61426541,114900.0,114890.0,0.8975747]
[1754391800587,0.61426541,114900.0,114890.0,1.30293051]
[1754391801191,0.61843541,114900.0,114890.0,0.8975747]
[1754391801487,0.61843541,114900.0,114890.0,1.30293051]
[1754391802389,0.2130796,114900.0,114890.0,1.30293051]
[1754391802690,0.61843541,114900.0,114890.0,1.30293051]
[1754391803589,0.61843541,114900.0,114890.0,0.8975747]
[1754391804593,0.2427096,114900.0,114890.0,0.8975747]
[1754391804890,1.05342122,114900.0,114890.0,0.8975747]
[1754391805091,0.2427096,114900.0,114890.0,0.8975747]
[1754391805396,1.05342122,114900.0,114890.0,0.8975747]
[1754391806593,1.07092122,114900.0,114890.0,0.8975747]
[1754391807493,1.05342122,114900.0,114890.0,0.8975747]
[1754391810293,0.64806541,114900.0,114890.0,0.8975747]
[1754391815796,1.05342122,114900.0,114890.0,0.8975747]
[1754391815997,0.64806541,114900.0,114890.0,0.8975747]
[1754391816796,0.2427096,114900.0,114890.0,0.8975747]
[1754391816996,0.64806541,114900.0,114890.0,0.8975747]
[1754391817193,1.05342122,114900.0,114890.0,0.8975747]
[1754391820902,0.64806541,114900.0,114890.0,0.8975747]
[1754391821401,0.2427096,114900.0,114890.0,0.8975747]
[1754391821597,0.64806541,114900.0,114890.0,0.8975747]
[1754391826597,0.64389541,114900.0,114890.0,0.8975747]
[1754391827402,0.64806541,114900.0,114890.0,0.8975747]
[1754391827600,1.05342122,114900.0,114890.0,0.8975747]
[1754391827801,1.05342122,114900.0,114890.0,0.8031447]
[1754391828101,1.07092122,114900.0,114890.0,0.8970747]
[1754391832506,1.07092122,114900.0,114890.0,0.2913147]
[1754391832706,1.07092122,114900.0,114890.0,0.62845]
[1754391832906,0.2602096,114900.0,114890.0,0.62845]
[1754391833109,1.07092122,114900.0,114890.0,0.62845]
[1754391834899,1.07092122,114900.0,114880.0,0.6257783]
[1754391834900,0.2559251,114890.0,114880.0,0.3364444]
[1754391835105,0.66128091,114890.0,114880.0,0.9397244]
[1754391836109,0.2559251,114890.0,114880.0,0.9397244]
[1754391836409,0.66128091,114890.0,114880.0,0.3364444]
[1754391836605,0.66128091,114890.0,114880.0,0.9400444]
[1754391836813,0.64378091,114890.0,114880.0,0.9400444]
[1754391837700,0.66128091,114890.0,114880.0,0.9400444]
[1754391838296,0.64378091,114890.0,114880.0,0.72258]
[1754391838501,0.66128091,114890.0,114880.0,0.72258]
[1754391838700,0.66128091,114890.0,114880.0,0.72266]
[1754391838901,0.66128091,114890.0,114880.0,0.02489]
[1754391839101,1.06663672,114890.0,114880.0,0.02489]
[1754391839310,1.06663672,114890.0,114880.0,0.62869]
[1754391839907,0.66128091,114890.0,114880.0,0.62869]
[1754391840204,0.66128091,114890.0,114880.0,0.02489]
[1754391840807,0.1741101,114880.0,114870.0,0.62853]
[1754391841013,0.2119352,114870.0,114860.0,0.1822166]
[1754391841204,1.06666682,114870.0,114860.0,0.69447947]
[1754391841404,1.06666682,114870.0,114860.0,0.09055947]
[1754391841600,1.06666682,114870.0,114860.0,0.69455947]
[1754391841910,0.2551504,114860.0,114850.0,0.68596]
[1754391842104,0.66050621,114860.0,114850.0,0.7241]
[1754391842407,0.66050621,114860.0,114850.0,0.72626]
[1754391842711,0.62457574,114860.0,114850.0,0.72626]
[1754391843410,0.61579314,114860.0,114850.0,0.73026]
[1754391843801,0.61579314,114860.0,114850.0,0.72826]
[1754391844004,0.61579314,114860.0,114850.0,0.9024155]
[1754391844316,0.2551504,114860.0,114850.0,0.72826]
[1754391844611,0.61579314,114860.0,114850.0,0.72826]
[1754391844805,0.61579314,114860.0,114850.0,0.9024155]
[1754391845205,0.61579314,114860.0,114850.0,0.9044155]
[1754391845615,0.1741404,114860.0,114850.0,0.9044155]
[1754391845810,0.59829314,114860.0,114850.0,0.9044155]
[1754391846007,0.61579314,114860.0,114850.0,0.9044155]
[1754391846817,0.61579314,114860.0,114850.0,0.7345]
[1754391847312,0.61579314,114860.0,114850.0,0.9086555]
[1754391847807,0.59829314,114860.0,114850.0,0.9086555]
[1754391848012,0.53478314,114860.0,114850.0,0.9086555]
[1754391848215,0.59829314,114860.0,114850.0,0.9086555]
[1754391848810,0.59829314,114860.0,114850.0,0.8599655]
[1754391849011,0.61579314,114860.0,114850.0,0.7345]
[1754391849206,0.2551504,114860.0,114850.0,0.7345]
[1754391849513,0.61579314,114860.0,114850.0,0.7345]
[1754391849716,0.61579314,114860.0,114850.0,0.2982953]
[1754391849916,0.61579314,114860.0,114850.0,0.73754]
[1754391850311,0.2376504,114860.0,114850.0,0.9116954]
[1754391850510,0.59829314,114860.0,114850.0,0.9116954]
[1754391851616,0.2376504,114860.0,114850.0,0.9116954]
[1754391852016,0.59829314,114860.0,114850.0,0.9116954]
[1754391852216,0.53478314,114860.0,114850.0,0.9116954]
[1754391852512,0.59412314,114860.0,114850.0,0.9116954]
[1754391852716,0.2376504,114860.0,114850.0,0.9116954]
[1754391852920,0.59829314,114860.0,114850.0,0.9116954]
[1754391854416,0.59829314,114860.0,114850.0,0.73754]
[1754391854618,0.61579314,114860.0,114850.0,0.73754]
[1754391855719,0.61579314,114860.0,114850.0,0.9116954]
[1754391855918,0.59829314,114860.0,114850.0,0.9116954]
[1754391856617,0.61579314,114860.0,114850.0,0.73794]
[1754391858018,0.2376504,114860.0,114850.0,0.9120954]
[1754391858421,0.59829314,114860.0,114850.0,0.9120954]
[1754391859215,0.2376504,114860.0,114850.0,0.9120954]
[1754391859414,0.59829314,114860.0,114850.0,0.9120954]
[1754391860223,0.2376504,114860.0,114850.0,0.9120954]
[1754391860422,0.59829314,114860.0,114850.0,0.9120954]
[1754391860723,0.2376504,114860.0,114850.0,0.9120954]
[1754391860923,0.59829314,114860.0,114850.0,0.9120954]
[1754391861915,0.1741404,114860.0,114850.0,0.9120954]
[1754391862121,0.53478314,114860.0,114850.0,0.9120954]
[1754391862625,0.55014314,114860.0,114850.0,0.9120954]
[1754391864229,0.56610314,114860.0,114850.0,0.9120954]
[1754391864429,0.59829314,114860.0,114850.0,0.9120954]
[1754391868634,0.2376504,114860.0,114850.0,0.9120954]
[1754391868933,0.1741404,114860.0,114850.0,0.9120954]
[1754391869232,0.53478314,114860.0,114850.0,0.9120954]
[1754391869436,0.55014314,114860.0,114850.0,0.9120954]
[1754391869626,0.2176592,114870.0,114860.0,0.3047231]
[1754391869930,0.1741277,114870.0,114860.0,0.78550584]
[1754391870623,0.1741277,114870.0,114860.0,0.4248631]
[1754391871024,0.1741277,114870.0,114860.0,0.4258631]
[1754391872336,0.1741277,114870.0,114860.0,0.4268631]
[1754391873333,0.3047115,114880.0,114870.0,0.290595]
[1754391873632,0.2176501,114880.0,114870.0,0.903115]
[1754391873938,0.66532654,114890.0,114880.0,0.2905799]
[1754391874134,0.3046838,114890.0,114880.0,0.2905799]
[1754391874645,0.3200438,114890.0,114880.0,0.2905799]
[1754391874844,0.3242138,114890.0,114880.0,0.2905799]
[1754391875047,0.68485654,114890.0,114880.0,0.29932283]
[1754391875347,0.68485654,114890.0,114880.0,0.2905799]
[1754391875646,0.70168654,114890.0,114880.0,0.2905799]
[1754391876546,0.69951654,114890.0,114880.0,0.2905799]
[1754391876941,0.62479964,114890.0,114880.0,0.2905799]
[1754391878342,0.64015964,114890.0,114880.0,0.2905799]
[1754391879035,0.2795169,114890.0,114880.0,0.2905799]
[1754391879542,0.2795169,114890.0,114880.0,0.29937264]
[1754391879745,0.2641569,114890.0,114880.0,0.29937264]
[1754391880347,0.2795169,114890.0,114880.0,0.29937264]
[1754391881548,0.2795169,114890.0,114880.0,0.2905799]
[1754391881749,0.68805964,114890.0,114880.0,0.2905799]
[1754391883348,0.70555964,114890.0,114880.0,0.2905799]
[1754391883548,0.70555964,114890.0,114880.0,0.29943958]
[1754391883749,0.68805964,114890.0,114880.0,0.29943958]
[1754391887148,0.003,114890.0,114880.0,0.67936514]
[1754391887350,1.503,114890.0,114880.0,0.67936514]
[1754391887647,1.6770948,114890.0,114880.0,0.67936514]
[1754391887850,1.503,114890.0,114880.0,0.67936514]
[1754391888150,0.00304,114890.0,114880.0,0.67936514]
[1754391888351,0.1771348,114890.0,114880.0,0.67936514]
[1754391888650,1.50204,114890.0,114880.0,0.3187224]
[1754391889142,1.6761348,114890.0,114880.0,0.9294024]
[1754391889348,1.6956648,114890.0,114880.0,0.9294024]
[1754391892153,1.6956648,114890.0,114880.0,1.1942024]
[1754391892341,1.6936648,114890.0,114880.0,1.1942024]
[1754391892745,1.6936648,114890.0,114880.0,1.17491958]
[1754391894752,1.6936648,114890.0,114880.0,0.56423958]
[1754391894953,1.6936648,114890.0,114880.0,1.17515958]
[1754391895254,1.6936648,114890.0,114880.0,1.17503958]
[1754391895456,1.7111648,114890.0,114880.0,1.17503958]
[1754391895754,1.6936648,114890.0,114880.0,1.17503958]
[1754391895949,2.05430754,114890.0,114880.0,1.17503958]
[1754391896149,1.6936648,114890.0,114880.0,1.17503958]
[1754391899043,1.6936648,114890.0,114880.0,0.56423958]
[1754391899244,2.07180754,114890.0,114880.0,1.0723099]
[1754391899645,2.07180754,114890.0,114880.0,1.1038399]
[1754391899851,2.07180754,114890.0,114880.0,1.1173899]
[1754391900356,2.07180754,114890.0,114880.0,1.12601842]
[1754391900557,2.07380754,114890.0,114880.0,1.12601842]
[1754391900752,2.07380754,114890.0,114880.0,0.5072699]
[1754391900958,2.07380754,114890.0,114880.0,1.1652199]
[1754391901151,2.07380754,114890.0,114880.0,1.0720299]
[1754391901757,2.07380754,114890.0,114880.0,0.2648]
[1754391901958,2.07380754,114890.0,114880.0,0.87456]
[1754391902555,2.07380754,114890.0,114880.0,0.89939]
[1754391903761,2.07480754,114890.0,114880.0,0.89939]
[1754391903955,2.07480754,114890.0,114880.0,0.63459]
[1754391906162,0.2560746,114870.0,114860.0,0.35780392]
[1754391906352,0.61671734,114870.0,114860.0,0.96700392]
[1754391906555,0.61671734,114870.0,114860.0,0.92346982]
[1754391907054,0.2560746,114870.0,114860.0,0.92334982]
[1754391907250,0.61671734,114870.0,114860.0,0.92334982]
[1754391907460,0.61671734,114870.0,114860.0,0.9049531]
[1754391907663,0.61671734,114870.0,114860.0,0.9059531]
[1754391908763,0.61671734,114870.0,114860.0,0.2968731]
[1754391908964,0.61671734,114870.0,114860.0,0.9056331]
[1754391909460,0.2560746,114870.0,114860.0,0.9056331]
[1754391909764,0.61671734,114870.0,114860.0,0.9056331]
[1754391910264,0.61671734,114870.0,114860.0,0.7315]
[1754391910464,0.61671734,114870.0,114860.0,0.9056398]
[1754391910663,0.61671734,114870.0,114860.0,0.7315]
[1754391910865,0.61671734,114870.0,114860.0,0.9056398]
[1754391911166,0.61671734,114870.0,114860.0,0.7315]
[1754391911961,0.61671734,114870.0,114860.0,0.9056398]
[1754391912160,0.61671734,114870.0,114860.0,0.7315]
[1754391912767,0.61671734,114870.0,114860.0,0.9056398]
[1754391913165,0.61671734,114870.0,114860.0,0.7315]
[1754391917266,0.61671734,114870.0,114860.0,0.9056398]
[1754391918067,0.61671734,114870.0,114860.0,0.7315]
[1754391919367,0.61671734,114870.0,114860.0,0.7307]
[1754391919767,0.61671734,114870.0,114860.0,0.12274]
[1754391919978,0.61671734,114870.0,114860.0,0.63471]
[1754391920967,0.62548871,114870.0,114860.0,0.9047598]
[1754391921473,0.61671734,114870.0,114860.0,0.9047598]
[1754391921768,0.2385746,114870.0,114860.0,0.9047598]
[1754391921968,0.59921734,114870.0,114860.0,0.9047598]
[1754391922163,0.61671734,114870.0,114860.0,0.9047598]
[1754391924073,0.61671734,114870.0,114860.0,0.73062]
[1754391924368,0.61671734,114870.0,114860.0,0.7301]
[1754391925266,0.61671734,114870.0,114860.0,0.9042397]
[1754391927970,0.61671734,114870.0,114860.0,0.7301]
[1754391930981,0.61671734,114870.0,114860.0,0.12274]
[1754391931174,0.61671734,114870.0,114860.0,0.002]
[1754391931480,0.61671734,114870.0,114860.0,0.02683]
[1754391931776,1.22375734,114870.0,114860.0,0.02683]
[1754391934774,1.22375734,114870.0,114860.0,0.002]
[1754391935076,1.22375734,114870.0,114860.0,0.0246]
[1754391935979,1.22375734,114870.0,114860.0,0.03413]
[1754391936876,1.22375734,114870.0,114860.0,0.0246]
[1754391940382,1.22375734,114870.0,114860.0,0.002]
[1754391942681,0.8631146,114870.0,114860.0,0.002]
[1754391942881,1.22375734,114870.0,114860.0,0.002]
[1754391943983,1.22375734,114870.0,114860.0,0.0246]
[1754391944483,1.29472618,114870.0,114860.0,0.0246]
[1754391945584,0.2635498,114860.0,114850.0,0.09647]
[1754391945781,0.62419254,114860.0,114850.0,0.09647]
[1754391947484,0.62419254,114860.0,114850.0,0.11907]
[1754391947984,0.2635498,114860.0,114850.0,0.12307]
[1754391948182,0.62423254,114860.0,114850.0,0.12307]
[1754391948586,0.2635898,114860.0,114850.0,0.12307]
[1754391948887,0.62423254,114860.0,114850.0,0.12307]
[1754391950682,0.2635898,114860.0,114850.0,0.12307]
[1754391950882,0.62423254,114860.0,114850.0,0.12307]
[1754391952086,0.62423254,114860.0,114850.0,0.004]
[1754391952680,0.62423254,114860.0,114850.0,0.03613]
[1754391952876,0.62423254,114860.0,114850.0,0.08523]
[1754391953085,0.62423254,114860.0,114850.0,0.12307]
[1754391954181,0.62423254,114860.0,114850.0,0.004]
[1754391954782,0.62423254,114860.0,114850.0,0.0266]
[1754391954983,0.62423254,114860.0,114850.0,0.06083]
[1754391955685,0.62423254,114860.0,114850.0,0.07036]
[1754391955887,0.2635898,114860.0,114850.0,0.08523]
[1754391956081,0.62423254,114860.0,114850.0,0.10733]
[1754391960694,0.73936055,114860.0,114850.0,0.10733]
[1754391961094,0.73936055,114860.0,114850.0,0.12307]
[1754391964701,0.78443433,114860.0,114850.0,0.12307]
[1754391966700,0.37871781,114860.0,114850.0,0.12307]
[1754391966893,0.78443433,114860.0,114850.0,0.12307]
[1754391968504,0.78443433,114860.0,114850.0,0.12107]
[1754391969907,0.78443433,114860.0,114850.0,0.11907]
[1754391972194,0.74018433,114860.0,114850.0,0.2932251]
[1754391972400,0.78229433,114860.0,114850.0,0.2932251]
[1754391973703,0.37657781,114860.0,114850.0,0.2932251]
[1754391973908,0.78229433,114860.0,114850.0,0.2932251]
[1754391976605,0.34982781,114860.0,114850.0,1.30314162]
[1754391976810,0.75554433,114860.0,114850.0,1.30314162]
[1754391977411,0.69502433,114860.0,114850.0,1.30314162]
[1754391978612,0.69502433,114860.0,114850.0,0.8974251]
[1754391979318,0.78203433,114860.0,114850.0,0.8974251]
[1754391979509,0.37631781,114860.0,114850.0,0.8974251]
[1754391979703,0.78203433,114860.0,114850.0,0.8974251]
[1754391983116,0.37631781,114860.0,114850.0,0.8974251]
[1754391983310,0.78203433,114860.0,114850.0,0.8974251]
[1754391988019,0.78207433,114860.0,114850.0,0.8974251]
[1754391992124,0.37635781,114860.0,114850.0,0.8974251]
[1754391992316,0.78207433,114860.0,114850.0,0.8974251]
[1754391995516,0.77790433,114860.0,114850.0,0.8974251]
[1754391995820,0.72658433,114860.0,114850.0,0.8974251]
[1754391996922,0.72658433,114860.0,114850.0,1.30314162]
[1754391997423,0.71122433,114860.0,114850.0,1.30314162]
[1754391998022,0.71122433,114860.0,114850.0,0.8974251]
[1754391998218,0.71122433,114860.0,114850.0,1.30314162]
[1754392000126,0.71122433,114860.0,114850.0,0.8974251]
[1754392000324,0.72658433,114860.0,114850.0,0.8974251]
[1754392001433,0.78267433,114860.0,114850.0,0.8974251]
[1754392001629,0.78267433,114860.0,114850.0,1.1622251]
[1754392004537,0.78367433,114860.0,114850.0,1.1622251]
[1754392009941,0.78367433,114860.0,114850.0,1.1607851]
[1754392011938,0.37795781,114860.0,114850.0,1.1607851]
[1754392012138,0.78367433,114860.0,114850.0,1.1607851]
[1754392015642,0.78367433,114860.0,114850.0,1.1603051]
[1754392016239,0.37795781,114860.0,114850.0,1.1603051]
[1754392016444,0.78367433,114860.0,114850.0,1.1603051]
[1754392021943,0.37795781,114860.0,114850.0,1.1603051]
[1754392022145,0.78367433,114860.0,114850.0,1.1603051]
[1754392025152,0.37795781,114860.0,114850.0,1.1603051]
[1754392025347,0.78367433,114860.0,114850.0,1.1603051]
[1754392028351,0.37795781,114860.0,114850.0,1.1603051]
[1754392028653,0.78367433,114860.0,114850.0,1.1603051]
[1754392028849,0.37795781,114860.0,114850.0,1.1603051]
[1754392029051,0.78367433,114860.0,114850.0,1.1603051]
[1754392029549,0.37795781,114860.0,114850.0,1.1603051]
[1754392029753,0.78367433,114860.0,114850.0,1.1603051]
[1754392029954,0.78367433,114860.0,114850.0,1.56602162]
[1754392030155,0.72758433,114860.0,114850.0,1.56602162]
[1754392030556,0.32186781,114860.0,114850.0,1.1603051]
[1754392030758,0.72758433,114860.0,114850.0,1.56602162]
[1754392031355,0.72758433,114860.0,114850.0,1.1603051]
[1754392031757,0.32186781,114860.0,114850.0,1.1603051]
[1754392031960,0.72758433,114860.0,114850.0,1.1603051]
[1754392033362,0.72758433,114860.0,114850.0,1.56602162]
[1754392033563,0.69606433,114860.0,114850.0,1.56602162]
[1754392034656,0.69506433,114860.0,114850.0,1.56602162]
[1754392036057,0.71155433,114860.0,114850.0,1.1603051]
[1754392036258,0.37752781,114860.0,114850.0,1.56602162]
[1754392036465,0.37752781,114860.0,114850.0,1.1603051]
[1754392036760,0.78324433,114860.0,114850.0,1.1603051]
[1754392037351,0.78424433,114860.0,114850.0,1.1603051]
[1754392037567,0.78424433,114860.0,114850.0,1.56602162]
[1754392038354,0.78424433,114860.0,114850.0,1.1603051]
[1754392038763,0.78424433,114860.0,114850.0,1.56602162]
[1754392039360,0.78424433,114860.0,114850.0,1.1603051]
[1754392039561,0.78424433,114860.0,114850.0,1.56602162]
[1754392042264,0.78424433,114860.0,114850.0,1.1603051]
[1754392042567,0.78424433,114860.0,114850.0,1.56602162]
[1754392043668,0.37852781,114860.0,114850.0,1.56602162]
[1754392043872,0.78424433,114860.0,114850.0,1.56602162]
[1754392044968,0.78424433,114860.0,114850.0,1.1603051]
[1754392045267,0.78424433,114860.0,114850.0,1.56602162]
[1754392045968,0.78424433,114860.0,114850.0,1.1603051]
[1754392046170,0.78424433,114860.0,114850.0,0.5580251]
[1754392046361,0.78424433,114860.0,114850.0,1.1601851]
[1754392047173,0.37852781,114860.0,114850.0,1.1601851]
[1754392047471,0.78424433,114860.0,114850.0,1.1601851]
[1754392048172,0.37852781,114860.0,114850.0,1.1601851]
[1754392048471,0.78424433,114860.0,114850.0,1.56590162]
[1754392049465,0.37852781,114860.0,114850.0,1.56590162]
[1754392049667,0.78424433,114860.0,114850.0,1.56590162]
[1754392050467,0.37852781,114860.0,114850.0,1.56590162]
[1754392050671,0.78424433,114860.0,114850.0,1.56590162]
[1754392051771,0.78424433,114860.0,114850.0,1.1601851]
[1754392052073,0.37852781,114860.0,114850.0,1.1601851]
[1754392052277,0.78424433,114860.0,114850.0,1.1601851]
[1754392052575,0.37852781,114860.0,114850.0,1.1601851]
[1754392052774,0.78424433,114860.0,114850.0,1.1601851]
[1754392052973,0.78424433,114860.0,114850.0,1.56590162]
[1754392054481,0.37852781,114860.0,114850.0,1.56590162]
[1754392054677,0.78424433,114860.0,114850.0,1.56590162]
[1754392055078,0.37852781,114860.0,114850.0,1.56590162]
[1754392055379,0.78424433,114860.0,114850.0,1.1601851]
[1754392055674,0.78424433,114860.0,114850.0,1.56590162]
[1754392055867,0.37852781,114860.0,114850.0,1.56590162]
[1754392056266,0.78424433,114860.0,114850.0,1.56590162]
[1754392057476,0.68424433,114860.0,114850.0,1.56590162]
[1754392060577,0.27852781,114860.0,114850.0,1.56590162]
[1754392060879,0.68424433,114860.0,114850.0,1.56590162]
[1754392062179,0.68424433,114860.0,114850.0,1.56582162]
[1754392062679,0.68007433,114860.0,114850.0,1.56582162]
[1754392062878,0.65135433,114860.0,114850.0,1.56582162]
[1754392063068,0.22219781,114860.0,114850.0,1.56582162]
[1754392063269,0.62791433,114860.0,114850.0,1.56582162]
[1754392063979,0.61255433,114860.0,114850.0,1.56582162]
[1754392065677,0.20683781,114860.0,114850.0,1.56582162]
[1754392065981,0.20683781,114860.0,114850.0,0.96374162]
[1754392066181,0.61255433,114860.0,114850.0,1.56582162]
[1754392066676,0.20683781,114860.0,114850.0,1.56582162]
[1754392066875,0.11620801,114860.0,114850.0,1.56582162]
[1754392067081,0.01620801,114860.0,114850.0,1.56582162]
[1754392070684,0.19035051,114860.0,114850.0,1.56582162]
[1754392071284,0.01620801,114860.0,114850.0,1.56582162]
[1754392072481,0.17745211,114870.0,114860.0,0.2064524]
[1754392072681,0.17745211,114870.0,114860.0,0.69886892]
[1754392072880,0.58316863,114870.0,114860.0,0.69886892]
[1754392073084,0.17745211,114870.0,114860.0,0.69886892]
[1754392073285,0.58316863,114870.0,114860.0,0.69886892]
[1754392074086,0.58316863,114870.0,114860.0,0.2931524]
[1754392074286,0.61562863,114870.0,114860.0,0.69886892]
[1754392074482,0.64232863,114870.0,114860.0,0.69886892]
[1754392074682,0.64332863,114870.0,114860.0,0.69886892]
[1754392075489,0.64332863,114870.0,114860.0,0.96366892]
[1754392075788,0.75845664,114870.0,114860.0,0.96366892]
[1754392077184,0.75845664,114870.0,114860.0,0.5579524]
[1754392077489,0.38095012,114870.0,114860.0,0.5579524]
[1754392077690,0.78666664,114870.0,114860.0,0.5579524]
[1754392078584,0.39095012,114870.0,114860.0,0.5579524]
[1754392078788,0.79666664,114870.0,114860.0,0.5579524]
[1754392084589,1.20238316,114870.0,114860.0,0.2648]
[1754392085499,1.50238316,114870.0,114860.0,0.2648]
[1754392086891,1.57055443,114870.0,114860.0,0.20934]
[1754392087089,0.1741575,114850.0,114840.0,0.28874928]
[1754392087295,0.57987402,114850.0,114840.0,0.28874928]
[1754392087595,0.57987402,114850.0,114840.0,0.09547377]